[Event "December 5 Early 2023"]
[Site "https://www.chess.com"]
[Date "2023.12.05"]
[Round "4"]
[White "Yashmetov, Mikhail"]
[Black "Franchini, Gabriele"]
[Result "1-0"]
[Board "166"]
[TimeControl "180+1"]
[WhiteFideId "24198900"]
[BlackFideId "806790"]
[WhiteElo "2514"]
[BlackElo "2320"]
[WhiteTeam "RUS"]
[BlackTeam "ITA"]
[WhiteClock "0:00:11"]
[BlackClock "0:00:00"]

1. d4 {[%clk 0:03:00]}  d5 {[%clk 0:02:59]} 2. Nf3 {[%clk 0:03:00]}  Nf6 {[%clk 0:02:59]} 3. g3 {[%clk 0:03:00]}  Bf5 {[%clk 0:02:56]} 4. Bg2 {[%clk 0:03:00]}  c6 {[%clk 0:02:57]} 5. O-O {[%clk 0:03:01]}  h6 {[%clk 0:02:57]} 6. c4 {[%clk 0:03:01]}  Nbd7 {[%clk 0:02:57]} 7. Qb3 {[%clk 0:03:01]}  Qb6 {[%clk 0:02:55]} 8. c5 {[%clk 0:03:01]}  Qxb3 {[%clk 0:02:51]} 9. axb3 {[%clk 0:03:02]}  a6 {[%clk 0:02:50]} 10. Nc3 {[%clk 0:03:01]}  Ne4 {[%clk 0:02:44]} 11. b4 {[%clk 0:02:54]}  e6 {[%clk 0:02:35]} 12. Nd2 {[%clk 0:02:24]}  Nxd2 {[%clk 0:02:23]} 13. Bxd2 {[%clk 0:02:25]}  g5 {[%clk 0:02:21]} 14. Rfd1 {[%clk 0:02:01]}  Bg7 {[%clk 0:02:20]} 15. Be1 {[%clk 0:01:59]}  Nf6 {[%clk 0:02:14]} 16. f3 {[%clk 0:01:58]}  g4 {[%clk 0:02:08]} 17. b5 {[%clk 0:01:35]}  gxf3 {[%clk 0:01:58]} 18. exf3 {[%clk 0:01:23]}  cxb5 {[%clk 0:01:58]} 19. Nxb5 {[%clk 0:01:17]}  O-O {[%clk 0:01:49]} 20. Nd6 {[%clk 0:01:14]}  Bg6 {[%clk 0:01:25]} 21. Nxb7 {[%clk 0:01:08]}  Rfb8 {[%clk 0:01:08]} 22. c6 {[%clk 0:01:04]}  Rc8 {[%clk 0:01:09]} 23. Na5 {[%clk 0:00:59]}  Ne8 {[%clk 0:01:04]} 24. Bf1 {[%clk 0:00:50]}  Nc7 {[%clk 0:00:56]} 25. Nb7 {[%clk 0:00:37]}  Bc2 {[%clk 0:00:38]} 26. Rd2 {[%clk 0:00:29]}  Bb3 {[%clk 0:00:38]} 27. Ra3 {[%clk 0:00:26]}  Bc4 {[%clk 0:00:38]} 28. Bxc4 {[%clk 0:00:26]}  dxc4 {[%clk 0:00:39]} 29. Nd6 {[%clk 0:00:26]}  Rd8 {[%clk 0:00:36]} 30. Nxc4 {[%clk 0:00:26]}  Bxd4+ {[%clk 0:00:34]} 31. Kg2 {[%clk 0:00:26]}  Bf6 {[%clk 0:00:19]} 32. Rad3 {[%clk 0:00:27]}  Rxd3 {[%clk 0:00:18]} 33. Rxd3 {[%clk 0:00:28]}  Nd5 {[%clk 0:00:18]} 34. Rxd5 {[%clk 0:00:22]}  exd5 {[%clk 0:00:17]} 35. Nb6 {[%clk 0:00:22]}  Re8 {[%clk 0:00:05]} 36. c7 {[%clk 0:00:19]}  Bxb2 {[%clk 0:00:05]} 37. Nxd5 {[%clk 0:00:11]}  Rc8 {[%clk 0:00:03]} 38. Ne7+ {[%clk 0:00:11]}  Kf8 {[%clk 0:00:02]} 39. Nxc8 {[%clk 0:00:12]}  Be5 {[%clk 0:00:00]} 40. Ba5 {[%clk 0:00:11]} 1-0

[Event "December 5 Early 2023"]
[Site "https://www.chess.com"]
[Date "2023.12.05"]
[Round "4"]
[White "Tharushi, T H D Niklesha"]
[Black "Yaniuk, Volodymyr"]
[Result "1-0"]
[Board "169"]
[TimeControl "180+1"]
[WhiteFideId "9918264"]
[BlackFideId "14133083"]
[WhiteElo "2312"]
[BlackElo "2507"]
[WhiteTeam "SRI"]
[BlackTeam "UKR"]
[WhiteClock "0:01:39"]
[BlackClock "0:00:51"]

1. e4 {[%clk 0:03:00]}  e5 {[%clk 0:02:54]} 2. Nf3 {[%clk 0:03:00]}  Nc6 {[%clk 0:02:54]} 3. Bc4 {[%clk 0:02:59]}  Bc5 {[%clk 0:02:54]} 4. c3 {[%clk 0:03:00]}  Nf6 {[%clk 0:02:54]} 5. d3 {[%clk 0:03:00]}  a6 {[%clk 0:02:54]} 6. O-O {[%clk 0:02:58]}  O-O {[%clk 0:02:54]} 7. Bb3 {[%clk 0:02:56]}  Ba7 {[%clk 0:02:53]} 8. Bg5 {[%clk 0:02:43]}  h6 {[%clk 0:02:53]} 9. Bh4 {[%clk 0:02:43]}  g5 {[%clk 0:02:53]} 10. Nxg5 {[%clk 0:02:36]}  hxg5 {[%clk 0:02:54]} 11. Bxg5 {[%clk 0:02:37]}  d6 {[%clk 0:02:54]} 12. Kh1 {[%clk 0:02:33]}  Be6 {[%clk 0:02:49]} 13. f4 {[%clk 0:02:31]}  Bxb3 {[%clk 0:02:49]} 14. axb3 {[%clk 0:02:31]}  Be3 {[%clk 0:02:30]} 15. g3 {[%clk 0:02:18]}  Kg7 {[%clk 0:02:23]} 16. Qf3 {[%clk 0:02:17]}  exf4 {[%clk 0:02:01]} 17. gxf4 {[%clk 0:02:16]}  Bb6 {[%clk 0:01:58]} 18. e5 {[%clk 0:02:01]}  Nh7 {[%clk 0:01:37]} 19. Bxd8 {[%clk 0:01:59]}  Raxd8 {[%clk 0:01:38]} 20. d4 {[%clk 0:01:56]}  dxe5 {[%clk 0:01:23]} 21. fxe5 {[%clk 0:01:55]}  f6 {[%clk 0:01:23]} 22. Qg4+ {[%clk 0:01:53]}  Kh8 {[%clk 0:01:23]} 23. exf6 {[%clk 0:01:53]}  Nxf6 {[%clk 0:01:18]} 24. Qh4+ {[%clk 0:01:50]}  Nh7 {[%clk 0:01:17]} 25. Rxf8+ {[%clk 0:01:50]}  Rxf8 {[%clk 0:01:18]} 26. Nd2 {[%clk 0:01:50]}  Nd8 {[%clk 0:01:16]} 27. Ne4 {[%clk 0:01:49]}  Ne6 {[%clk 0:01:12]} 28. Rg1 {[%clk 0:01:47]}  c6 {[%clk 0:00:51]} 29. Qe7 {[%clk 0:01:39]} 1-0

[Event "December 5 Early 2023"]
[Site "https://www.chess.com"]
[Date "2023.12.05"]
[Round "4"]
[White "Shinkarev, M"]
[Black "Rose, Felix"]
[Result "1-0"]
[Board "170"]
[TimeControl "180+1"]
[WhiteFideId "4145348"]
[BlackFideId "5105722"]
[WhiteElo "2505"]
[BlackElo "2307"]
[WhiteTeam "RUS"]
[BlackTeam "MEX"]
[WhiteClock "0:01:18"]
[BlackClock "0:00:00"]

1. c4 {[%clk 0:03:00]}  e6 {[%clk 0:02:59]} 2. d4 {[%clk 0:03:00]}  d5 {[%clk 0:03:00]} 3. Nf3 {[%clk 0:03:01]}  Nf6 {[%clk 0:03:00]} 4. Bg5 {[%clk 0:03:01]}  Be7 {[%clk 0:03:00]} 5. e3 {[%clk 0:03:01]}  Nbd7 {[%clk 0:03:01]} 6. Nc3 {[%clk 0:03:01]}  h6 {[%clk 0:03:01]} 7. Bxf6 {[%clk 0:02:59]}  Nxf6 {[%clk 0:03:01]} 8. cxd5 {[%clk 0:03:00]}  exd5 {[%clk 0:03:02]} 9. Bd3 {[%clk 0:03:01]}  c6 {[%clk 0:03:02]} 10. O-O {[%clk 0:03:02]}  O-O {[%clk 0:03:03]} 11. Rb1 {[%clk 0:03:00]}  a5 {[%clk 0:03:02]} 12. a3 {[%clk 0:03:00]}  Bd6 {[%clk 0:03:02]} 13. Ne5 {[%clk 0:02:55]}  Bxe5 {[%clk 0:02:44]} 14. dxe5 {[%clk 0:02:55]}  Ng4 {[%clk 0:02:43]} 15. h3 {[%clk 0:02:27]}  Nxe5 {[%clk 0:02:41]} 16. Bc2 {[%clk 0:02:27]}  Qf6 {[%clk 0:02:27]} 17. Ne2 {[%clk 0:02:20]}  Bf5 {[%clk 0:02:20]} 18. Ng3 {[%clk 0:02:17]}  Bxc2 {[%clk 0:02:06]} 19. Qxc2 {[%clk 0:02:18]}  g6 {[%clk 0:02:01]} 20. Rfd1 {[%clk 0:02:17]}  h5 {[%clk 0:01:48]} 21. e4 {[%clk 0:02:12]}  h4 {[%clk 0:01:44]} 22. Nf1 {[%clk 0:02:11]}  dxe4 {[%clk 0:01:39]} 23. Qxe4 {[%clk 0:02:12]}  Rfe8 {[%clk 0:01:38]} 24. Ne3 {[%clk 0:02:08]}  Kg7 {[%clk 0:01:27]} 25. Rd2 {[%clk 0:01:55]}  Re7 {[%clk 0:01:19]} 26. Rbd1 {[%clk 0:01:54]}  Rae8 {[%clk 0:01:16]} 27. Qd4 {[%clk 0:01:52]}  Rd7 {[%clk 0:00:56]} 28. Qb6 {[%clk 0:01:46]}  Red8 {[%clk 0:00:23]} 29. Qxa5 {[%clk 0:01:37]}  b6 {[%clk 0:00:16]} 30. Qc3 {[%clk 0:01:36]}  Rxd2 {[%clk 0:00:15]} 31. Rxd2 {[%clk 0:01:36]}  Rxd2 {[%clk 0:00:15]} 32. Qxd2 {[%clk 0:01:37]}  c5 {[%clk 0:00:16]} 33. Nd5 {[%clk 0:01:36]}  Qf5 {[%clk 0:00:13]} 34. f4 {[%clk 0:01:33]}  Qd3 {[%clk 0:00:07]} 35. Qxd3 {[%clk 0:01:26]}  Nxd3 {[%clk 0:00:08]} 36. Nxb6 {[%clk 0:01:27]}  Nxb2 {[%clk 0:00:08]} 37. a4 {[%clk 0:01:26]}  c4 {[%clk 0:00:08]} 38. Kf2 {[%clk 0:01:18]}  c3 {[%clk 0:00:00]} 39. Ke2 {[%clk 0:01:18]} 1-0

[Event "December 5 Early 2023"]
[Site "https://www.chess.com"]
[Date "2023.12.05"]
[Round "4"]
[White "Barbot, Pierre"]
[Black "Davidson, Kevin"]
[Result "1/2-1/2"]
[Board "172"]
[TimeControl "180+1"]
[WhiteFideId "663727"]
[BlackFideId "2056810"]
[WhiteElo "2300"]
[BlackElo "2502"]
[WhiteTeam "FRA"]
[BlackTeam "USA"]
[WhiteClock "0:00:03"]
[BlackClock "0:00:03"]

1. e4 {[%clk 0:03:00]}  c5 {[%clk 0:02:59]} 2. Nc3 {[%clk 0:03:00]}  a6 {[%clk 0:02:59]} 3. g3 {[%clk 0:02:49]}  b5 {[%clk 0:02:59]} 4. Bg2 {[%clk 0:02:49]}  Bb7 {[%clk 0:02:59]} 5. d3 {[%clk 0:02:42]}  e6 {[%clk 0:03:00]} 6. f4 {[%clk 0:02:40]}  Nf6 {[%clk 0:02:58]} 7. Nf3 {[%clk 0:02:40]}  b4 {[%clk 0:02:58]} 8. Ne2 {[%clk 0:02:34]}  d5 {[%clk 0:02:58]} 9. e5 {[%clk 0:02:31]}  Nfd7 {[%clk 0:02:58]} 10. d4 {[%clk 0:02:23]}  Nc6 {[%clk 0:02:54]} 11. Be3 {[%clk 0:02:16]}  Qb6 {[%clk 0:02:54]} 12. O-O {[%clk 0:02:13]}  cxd4 {[%clk 0:02:52]} 13. Nexd4 {[%clk 0:02:08]}  Bc5 {[%clk 0:02:52]} 14. Qd2 {[%clk 0:01:58]}  O-O {[%clk 0:02:45]} 15. Rad1 {[%clk 0:01:39]}  a5 {[%clk 0:02:44]} 16. Rfe1 {[%clk 0:01:34]}  Ba6 {[%clk 0:02:36]} 17. Qf2 {[%clk 0:01:33]}  Rac8 {[%clk 0:02:23]} 18. h4 {[%clk 0:01:21]}  Nxd4 {[%clk 0:01:51]} 19. Nxd4 {[%clk 0:01:18]}  f6 {[%clk 0:01:36]} 20. exf6 {[%clk 0:00:57]}  Nxf6 {[%clk 0:01:31]} 21. Nxe6 {[%clk 0:00:51]}  Bxe3 {[%clk 0:01:17]} 22. Qxe3 {[%clk 0:00:33]}  Qxe3+ {[%clk 0:01:14]} 23. Rxe3 {[%clk 0:00:34]}  Rfe8 {[%clk 0:01:11]} 24. c3 {[%clk 0:00:24]}  bxc3 {[%clk 0:01:05]} 25. bxc3 {[%clk 0:00:25]}  Bc4 {[%clk 0:01:00]} 26. a3 {[%clk 0:00:20]}  Rb8 {[%clk 0:00:46]} 27. Bh3 {[%clk 0:00:15]}  Rb3 {[%clk 0:00:38]} 28. Rde1 {[%clk 0:00:12]}  Rxa3 {[%clk 0:00:32]} 29. Nc5 {[%clk 0:00:11]}  Rxe3 {[%clk 0:00:31]} 30. Rxe3 {[%clk 0:00:12]}  g6 {[%clk 0:00:18]} 31. Re7 {[%clk 0:00:11]}  Rxc3 {[%clk 0:00:13]} 32. Be6+ {[%clk 0:00:05]}  Kh8 {[%clk 0:00:09]} 33. Rf7 {[%clk 0:00:05]}  Ne4 {[%clk 0:00:05]} 34. g4 {[%clk 0:00:02]}  Nxc5 {[%clk 0:00:05]} 35. Rf8+ {[%clk 0:00:02]}  Kg7 {[%clk 0:00:05]} 36. Rf7+ {[%clk 0:00:02]}  Kh8 {[%clk 0:00:04]} 37. Rf8+ {[%clk 0:00:03]}  Kg7 {[%clk 0:00:04]} 38. Rf7+ {[%clk 0:00:03]}  Kh8 {[%clk 0:00:03]} 1/2-1/2

[Event "December 5 Early 2023"]
[Site "https://www.chess.com"]
[Date "2023.12.05"]
[Round "4"]
[White "Kovalevsky, Stanislav"]
[Black "Sarkar, Justin"]
[Result "1-0"]
[Board "175"]
[TimeControl "180+1"]
[WhiteFideId "13508598"]
[BlackFideId "2010011"]
[WhiteElo "2486"]
[BlackElo "2291"]
[WhiteTeam "FID"]
[BlackTeam "USA"]
[WhiteClock "0:01:45"]
[BlackClock "0:00:05"]

1. e4 {[%clk 0:03:00]}  c5 {[%clk 0:02:49]} 2. c3 {[%clk 0:03:00]}  d5 {[%clk 0:02:30]} 3. exd5 {[%clk 0:03:00]}  Qxd5 {[%clk 0:02:30]} 4. Nf3 {[%clk 0:03:01]}  Bg4 {[%clk 0:02:24]} 5. d4 {[%clk 0:02:56]}  Bxf3 {[%clk 0:02:18]} 6. gxf3 {[%clk 0:02:56]}  cxd4 {[%clk 0:02:17]} 7. cxd4 {[%clk 0:02:56]}  Nc6 {[%clk 0:02:16]} 8. Be3 {[%clk 0:02:52]}  e5 {[%clk 0:02:12]} 9. Nc3 {[%clk 0:02:52]}  Bb4 {[%clk 0:02:09]} 10. dxe5 {[%clk 0:02:27]}  Qxe5 {[%clk 0:01:46]} 11. Qb3 {[%clk 0:02:08]}  Nge7 {[%clk 0:01:39]} 12. O-O-O {[%clk 0:02:02]}  O-O {[%clk 0:01:29]} 13. Rg1 {[%clk 0:02:01]}  Rac8 {[%clk 0:01:20]} 14. Kb1 {[%clk 0:01:59]}  Nf5 {[%clk 0:01:12]} 15. f4 {[%clk 0:01:48]}  Qb8 {[%clk 0:00:23]} 16. Nd5 {[%clk 0:01:48]}  Bd6 {[%clk 0:00:11]} 17. Qd3 {[%clk 0:01:44]}  Nxe3 {[%clk 0:00:06]} 18. Nf6+ {[%clk 0:01:44]}  Kh8 {[%clk 0:00:05]} 19. Qxh7# {[%clk 0:01:45]} 1-0

[Event "December 5 Early 2023"]
[Site "https://www.chess.com"]
[Date "2023.12.05"]
[Round "4"]
[White "Filali, Razzouki Marouane"]
[Black "Vifleemskaia, Svetlana"]
[Result "1-0"]
[Board "176"]
[TimeControl "180+1"]
[WhiteFideId "9003720"]
[BlackFideId "4129490"]
[WhiteElo "2483"]
[BlackElo "2265"]
[WhiteTeam "MAR"]
[BlackTeam "RUS"]
[WhiteClock "0:00:10"]
[BlackClock "0:00:00"]

1. e4 {[%clk 0:03:00]}  e5 {[%clk 0:02:59]} 2. Nf3 {[%clk 0:02:59]}  Nc6 {[%clk 0:02:59]} 3. Bc4 {[%clk 0:02:59]}  Nf6 {[%clk 0:02:58]} 4. Ng5 {[%clk 0:02:58]}  d5 {[%clk 0:02:58]} 5. exd5 {[%clk 0:02:58]}  Na5 {[%clk 0:02:58]} 6. Bb5+ {[%clk 0:02:58]}  c6 {[%clk 0:02:58]} 7. dxc6 {[%clk 0:02:59]}  bxc6 {[%clk 0:02:59]} 8. Qf3 {[%clk 0:03:00]}  Be7 {[%clk 0:02:55]} 9. Bd3 {[%clk 0:02:52]}  h6 {[%clk 0:02:46]} 10. Ne4 {[%clk 0:02:52]}  Nd5 {[%clk 0:02:36]} 11. Ng3 {[%clk 0:02:48]}  O-O {[%clk 0:02:22]} 12. O-O {[%clk 0:02:37]}  g6 {[%clk 0:02:09]} 13. c3 {[%clk 0:01:48]}  f5 {[%clk 0:01:58]} 14. b4 {[%clk 0:01:44]}  e4 {[%clk 0:01:44]} 15. Nxe4 {[%clk 0:01:14]}  fxe4 {[%clk 0:01:38]} 16. Qxe4 {[%clk 0:01:14]}  Bf5 {[%clk 0:01:37]} 17. Qe2 {[%clk 0:01:05]}  Nb7 {[%clk 0:01:32]} 18. Bxf5 {[%clk 0:00:56]}  Rxf5 {[%clk 0:01:30]} 19. Qe6+ {[%clk 0:00:56]}  Kg7 {[%clk 0:01:27]} 20. Qxc6 {[%clk 0:00:55]}  Nd6 {[%clk 0:01:19]} 21. Bb2 {[%clk 0:00:49]}  Rc8 {[%clk 0:01:13]} 22. Qa6 {[%clk 0:00:44]}  Nf4 {[%clk 0:00:56]} 23. c4+ {[%clk 0:00:36]}  Bf6 {[%clk 0:00:46]} 24. Bxf6+ {[%clk 0:00:33]}  Qxf6 {[%clk 0:00:38]} 25. c5 {[%clk 0:00:29]}  Ne2+ {[%clk 0:00:29]} 26. Qxe2 {[%clk 0:00:26]}  Qxa1 {[%clk 0:00:28]} 27. Nc3 {[%clk 0:00:19]}  Qb2 {[%clk 0:00:17]} 28. Rb1 {[%clk 0:00:19]}  Qc2 {[%clk 0:00:15]} 29. g4 {[%clk 0:00:11]}  Rf7 {[%clk 0:00:09]} 30. Qe5+ {[%clk 0:00:11]}  Kh7 {[%clk 0:00:07]} 31. Qxd6 {[%clk 0:00:10]}  Re8 {[%clk 0:00:00]} 32. Rf1 {[%clk 0:00:10]} 1-0

[Event "December 5 Early 2023"]
[Site "https://www.chess.com"]
[Date "2023.12.05"]
[Round "4"]
[White "Lehtosaari, Mauri"]
[Black "Deveci, Huseyin Said"]
[Result "1-0"]
[Board "179"]
[TimeControl "180+1"]
[WhiteFideId "501999"]
[BlackFideId "26322455"]
[WhiteElo "2480"]
[BlackElo "2254"]
[WhiteTeam "FIN"]
[BlackTeam "TUR"]
[WhiteClock "0:00:18"]
[BlackClock "0:00:27"]

1. d4 {[%clk 0:03:00]}  d5 {[%clk 0:02:59]} 2. c4 {[%clk 0:03:00]}  c6 {[%clk 0:02:59]} 3. Nc3 {[%clk 0:03:00]}  Nf6 {[%clk 0:02:58]} 4. cxd5 {[%clk 0:02:54]}  cxd5 {[%clk 0:02:58]} 5. Bf4 {[%clk 0:02:55]}  Nc6 {[%clk 0:02:58]} 6. e3 {[%clk 0:02:54]}  Bf5 {[%clk 0:02:54]} 7. Nf3 {[%clk 0:02:47]}  e6 {[%clk 0:02:51]} 8. Qb3 {[%clk 0:02:38]}  Bb4 {[%clk 0:02:50]} 9. Bb5 {[%clk 0:02:37]}  O-O {[%clk 0:02:46]} 10. O-O {[%clk 0:02:14]}  Bxc3 {[%clk 0:02:41]} 11. Qxc3 {[%clk 0:02:11]}  Rc8 {[%clk 0:02:34]} 12. Qa3 {[%clk 0:02:10]}  a6 {[%clk 0:02:33]} 13. Bxc6 {[%clk 0:02:02]}  Rxc6 {[%clk 0:02:34]} 14. Rac1 {[%clk 0:02:01]}  Qb6 {[%clk 0:02:26]} 15. Ne5 {[%clk 0:01:57]}  Rcc8 {[%clk 0:02:19]} 16. f3 {[%clk 0:01:32]}  h6 {[%clk 0:02:17]} 17. Bg3 {[%clk 0:01:30]}  Qb5 {[%clk 0:02:12]} 18. Bh4 {[%clk 0:01:24]}  g5 {[%clk 0:02:04]} 19. Bf2 {[%clk 0:01:21]}  Nd7 {[%clk 0:02:01]} 20. Bg3 {[%clk 0:01:03]}  Nxe5 {[%clk 0:01:53]} 21. Bxe5 {[%clk 0:01:04]}  Qe2 {[%clk 0:01:53]} 22. Rfe1 {[%clk 0:00:51]}  Rxc1 {[%clk 0:01:51]} 23. Rxc1 {[%clk 0:00:52]}  Bd3 {[%clk 0:01:51]} 24. Kh1 {[%clk 0:00:31]}  Qxe3 {[%clk 0:01:48]} 25. Rd1 {[%clk 0:00:29]}  Rc8 {[%clk 0:01:45]} 26. h4 {[%clk 0:00:23]}  Rc1 {[%clk 0:01:42]} 27. Rxc1 {[%clk 0:00:21]}  Qxc1+ {[%clk 0:01:43]} 28. Kh2 {[%clk 0:00:22]}  Bb5 {[%clk 0:00:44]} 29. Qe7 {[%clk 0:00:20]}  gxh4 {[%clk 0:00:26]} 30. Qd8+ {[%clk 0:00:18]}  Kh7 {[%clk 0:00:27]} 31. Qh8+ {[%clk 0:00:19]}  Kg6 {[%clk 0:00:27]} 32. Qg7+ {[%clk 0:00:18]}  Kh5 {[%clk 0:00:27]} 33. Qg4# {[%clk 0:00:18]} 1-0

[Event "December 5 Early 2023"]
[Site "https://www.chess.com"]
[Date "2023.12.05"]
[Round "4"]
[White "Iljin, Timofey"]
[Black "Dyulgerov, Volen"]
[Result "0-1"]
[Board "181"]
[TimeControl "180+1"]
[WhiteFideId "14110180"]
[BlackFideId "2918978"]
[WhiteElo "2478"]
[BlackElo "2242"]
[WhiteTeam "UKR"]
[BlackTeam "BUL"]
[WhiteClock "0:00:03"]
[BlackClock "0:00:08"]

1. e4 {[%clk 0:03:00]}  c5 {[%clk 0:02:59]} 2. c3 {[%clk 0:02:57]}  d5 {[%clk 0:02:54]} 3. exd5 {[%clk 0:02:57]}  e6 {[%clk 0:02:55]} 4. d4 {[%clk 0:02:58]}  exd5 {[%clk 0:02:54]} 5. Nf3 {[%clk 0:02:58]}  Nf6 {[%clk 0:02:54]} 6. Bd3 {[%clk 0:02:57]}  Bd6 {[%clk 0:02:54]} 7. O-O {[%clk 0:02:58]}  O-O {[%clk 0:02:55]} 8. dxc5 {[%clk 0:02:57]}  Bxc5 {[%clk 0:02:55]} 9. h3 {[%clk 0:02:57]}  Nc6 {[%clk 0:02:45]} 10. Bc2 {[%clk 0:02:56]}  Re8 {[%clk 0:02:32]} 11. Bg5 {[%clk 0:02:55]}  h6 {[%clk 0:02:29]} 12. Bh4 {[%clk 0:02:55]}  g5 {[%clk 0:02:23]} 13. Bg3 {[%clk 0:02:49]}  Ne4 {[%clk 0:02:23]} 14. Bh2 {[%clk 0:02:21]}  g4 {[%clk 0:02:18]} 15. Nd4 {[%clk 0:02:00]}  Qg5 {[%clk 0:01:23]} 16. hxg4 {[%clk 0:01:41]}  Bxg4 {[%clk 0:01:19]} 17. Qd3 {[%clk 0:00:50]}  Bxd4 {[%clk 0:00:27]} 18. cxd4 {[%clk 0:00:50]}  Nb4 {[%clk 0:00:17]} 19. Qb3 {[%clk 0:00:48]}  Nxc2 {[%clk 0:00:12]} 20. Qxc2 {[%clk 0:00:48]}  Bf3 {[%clk 0:00:11]} 21. Bg3 {[%clk 0:00:12]}  Nxg3 {[%clk 0:00:11]} 22. gxf3 {[%clk 0:00:07]}  Ne2+ {[%clk 0:00:09]} 23. Kh1 {[%clk 0:00:02]}  Qh4+ {[%clk 0:00:07]} 24. Kg2 {[%clk 0:00:02]}  Nf4+ {[%clk 0:00:08]} 25. Kg1 {[%clk 0:00:03]}  Qg5+ {[%clk 0:00:07]} 26. Kh2 {[%clk 0:00:03]}  Qg2# {[%clk 0:00:08]} 0-1

[Event "December 5 Early 2023"]
[Site "https://www.chess.com"]
[Date "2023.12.05"]
[Round "4"]
[White "Buksa, Nataliya"]
[Black "Player, Edmund C"]
[Result "1-0"]
[Board "182"]
[TimeControl "180+1"]
[WhiteFideId "14123622"]
[BlackFideId "406520"]
[WhiteElo "2477"]
[BlackElo "2228"]
[WhiteTeam "UKR"]
[BlackTeam "ENG"]
[WhiteClock "0:00:41"]
[BlackClock "0:00:00"]

1. d4 {[%clk 0:03:00]}  Nf6 {[%clk 0:02:57]} 2. Nc3 {[%clk 0:03:01]}  d5 {[%clk 0:02:56]} 3. Bf4 {[%clk 0:03:01]}  a6 {[%clk 0:02:45]} 4. e3 {[%clk 0:03:02]}  c5 {[%clk 0:02:45]} 5. Nf3 {[%clk 0:03:02]}  Nc6 {[%clk 0:02:43]} 6. Ne5 {[%clk 0:03:02]}  cxd4 {[%clk 0:02:27]} 7. exd4 {[%clk 0:03:03]}  Qb6 {[%clk 0:02:24]} 8. Nxc6 {[%clk 0:03:02]}  Qxc6 {[%clk 0:02:14]} 9. Be2 {[%clk 0:02:51]}  Bf5 {[%clk 0:02:11]} 10. O-O {[%clk 0:02:51]}  e6 {[%clk 0:02:11]} 11. Bd3 {[%clk 0:02:44]}  Bg6 {[%clk 0:01:56]} 12. Ne2 {[%clk 0:02:43]}  Be4 {[%clk 0:01:47]} 13. c3 {[%clk 0:02:40]}  Bd6 {[%clk 0:01:42]} 14. f3 {[%clk 0:02:40]}  Bg6 {[%clk 0:01:31]} 15. Re1 {[%clk 0:02:35]}  O-O {[%clk 0:01:17]} 16. Bxg6 {[%clk 0:02:34]}  hxg6 {[%clk 0:01:18]} 17. Qd2 {[%clk 0:02:34]}  b5 {[%clk 0:01:18]} 18. Bxd6 {[%clk 0:02:33]}  Qxd6 {[%clk 0:01:18]} 19. Nf4 {[%clk 0:02:33]}  a5 {[%clk 0:01:11]} 20. a3 {[%clk 0:02:29]}  Rab8 {[%clk 0:01:06]} 21. Nd3 {[%clk 0:02:29]}  Nd7 {[%clk 0:01:04]} 22. b4 {[%clk 0:02:27]}  Nb6 {[%clk 0:00:58]} 23. Ne5 {[%clk 0:02:13]}  Nc4 {[%clk 0:00:55]} 24. Nxc4 {[%clk 0:02:12]}  dxc4 {[%clk 0:00:34]} 25. Re5 {[%clk 0:02:11]}  f6 {[%clk 0:00:30]} 26. Re2 {[%clk 0:02:05]}  Kf7 {[%clk 0:00:30]} 27. Rae1 {[%clk 0:02:03]}  Rh8 {[%clk 0:00:20]} 28. g3 {[%clk 0:02:01]}  axb4 {[%clk 0:00:16]} 29. axb4 {[%clk 0:01:47]}  Rhe8 {[%clk 0:00:13]} 30. Qe3 {[%clk 0:01:28]}  Ra8 {[%clk 0:00:13]} 31. Qe4 {[%clk 0:01:28]}  Qd5 {[%clk 0:00:12]} 32. Qf4 {[%clk 0:01:17]}  g5 {[%clk 0:00:09]} 33. Qg4 {[%clk 0:01:13]}  Ra3 {[%clk 0:00:08]} 34. Re3 {[%clk 0:01:07]}  Re7 {[%clk 0:00:05]} 35. R1e2 {[%clk 0:00:59]}  Ra1+ {[%clk 0:00:05]} 36. Kg2 {[%clk 0:00:59]}  Kf8 {[%clk 0:00:04]} 37. Qh5 {[%clk 0:00:58]}  Ra3 {[%clk 0:00:03]} 38. h4 {[%clk 0:00:55]}  Qf5 {[%clk 0:00:01]} 39. hxg5 {[%clk 0:00:47]}  Qxg5 {[%clk 0:00:01]} 40. Qxg5 {[%clk 0:00:43]}  fxg5 {[%clk 0:00:02]} 41. Rc2 {[%clk 0:00:43]}  Kf7 {[%clk 0:00:02]} 42. Re5 {[%clk 0:00:44]}  Rb7 {[%clk 0:00:01]} 43. Kh3 {[%clk 0:00:42]}  Kf6 {[%clk 0:00:01]} 44. Kg4 {[%clk 0:00:42]}  Ra1 {[%clk 0:00:01]} 45. Rxg5 {[%clk 0:00:41]}  Rf1 {[%clk 0:00:00]} 46. Re5 {[%clk 0:00:41]} 1-0

[Event "December 5 Early 2023"]
[Site "https://www.chess.com"]
[Date "2023.12.05"]
[Round "4"]
[White "Kazakov, Mikhail"]
[Black "Mishra, Manoj"]
[Result "0-1"]
[Board "183"]
[TimeControl "180+1"]
[WhiteFideId "14102749"]
[BlackFideId "5006007"]
[WhiteElo "2471"]
[BlackElo "2220"]
[WhiteTeam "UKR"]
[BlackTeam "IND"]
[WhiteClock "0:00:00"]
[BlackClock "0:01:29"]

1. Nf3 {[%clk 0:02:45]}  Nf6 {[%clk 0:02:29]} 2. g3 {[%clk 0:02:31]}  b5 {[%clk 0:02:28]} 3. Bg2 {[%clk 0:02:21]}  Bb7 {[%clk 0:02:28]} 4. O-O {[%clk 0:02:21]}  c5 {[%clk 0:02:26]} 5. a4 {[%clk 0:02:20]}  b4 {[%clk 0:02:25]} 6. d4 {[%clk 0:02:20]}  c4 {[%clk 0:02:23]} 7. c3 {[%clk 0:02:19]}  a5 {[%clk 0:02:07]} 8. Nbd2 {[%clk 0:02:16]}  d5 {[%clk 0:02:06]} 9. Ne5 {[%clk 0:02:14]}  Qc8 {[%clk 0:01:59]} 10. Re1 {[%clk 0:02:08]}  Nbd7 {[%clk 0:01:58]} 11. Nxd7 {[%clk 0:00:00]}  Qxd7 {[%clk 0:01:29]} 0-1